bitfinex/quotes_ETHUSD_20250925
["timestamp","ask_amount","ask_price","bid_price","bid_amount"]
[1758844398974,3.57358204,3871.7,3871.6,0.002]
[1758844399156,3.11228204,3871.7,3871.6,0.002]
[1758844399473,3.58148204,3871.7,3871.6,0.002]
[1758844400273,2.58284474,3871.7,3871.6,0.002]
[1758844401344,2.58384474,3871.7,3871.6,0.002]
[1758844403346,3.05304474,3871.7,3871.6,0.002]
[1758844405087,2.58384474,3871.7,3871.6,0.002]
[1758844405675,2.58384474,3871.7,3871.6,0.6911]
[1758844405676,0.001,3871.7,3871.6,0.6911]
[1758844405865,0.001,3871.7,3871.6,0.91819311]
[1758844406566,0.001,3871.7,3871.6,0.6911]
[1758844407390,0.001,3871.7,3871.6,5.2471]
[1758844408158,0.001,3871.7,3871.6,9.38201145]
[1758844408359,0.001,3871.7,3871.6,9.51081145]
[1758844409187,0.001,3871.7,3871.6,16.23281145]
[1758844409388,0.001,3871.7,3871.6,18.38381145]
[1758844409891,0.001,3871.7,3871.6,19.17581145]
[1758844410261,0.001,3871.7,3871.6,22.17581145]
[1758844413675,0.001,3872.3,3872.2,7.92651123]
[1758844413908,0.001,3872.3,3872.2,21.48231123]
[1758844414210,0.001,3872.3,3872.2,22.17141123]
[1758844414581,0.001,3872.3,3872.2,22.04261123]
[1758844415797,0.001,3872.3,3871.6,0.002]
[1758844416119,2.58284474,3871.7,3871.6,0.002]
[1758844416410,3.17424474,3871.7,3871.6,0.002]
[1758844417493,3.17424474,3871.7,3871.6,4.553]
[1758844418877,6.45450937,3871.7,3871.6,0.002]
[1758844424019,6.33230937,3871.7,3871.6,0.002]
[1758844424515,6.45450937,3871.7,3871.6,0.002]
[1758844427528,11.79750937,3871.7,3871.6,0.002]
[1758844429227,11.79750937,3871.7,3870.7,1e-08]
[1758844429228,5.58324507,3871.1,3870.7,1e-08]
[1758844429407,10.95088476,3871.1,3870.7,1e-08]
[1758844429724,11.51998476,3871.1,3870.7,1e-08]
[1758844430114,6.96898476,3871.1,3870.7,1e-08]
[1758844430430,11.51998476,3871.1,3870.7,1e-08]
[1758844432732,12.31198476,3871.1,3870.7,1e-08]
[1758844433535,2.58337854,3870.9,3870.8,1e-08]
[1758844433700,10.92637854,3870.9,3870.8,1e-08]
[1758844433901,2.58384579,3870.2,3870.1,1e-08]
[1758844434114,10.92584579,3870.2,3870.1,1e-08]
[1758844434323,13.10426615,3870.2,3870.1,1e-08]
[1758844435828,8.55426615,3870.2,3870.1,1e-08]
[1758844436033,15.25626615,3870.2,3870.1,1e-08]
[1758844436414,15.25626615,3870.2,3870.1,0.00200001]
[1758844436817,8.55426615,3870.2,3870.1,0.00200001]
[1758844437146,15.13406615,3870.2,3870.1,0.00200001]
[1758844437451,15.25626615,3870.2,3870.1,0.00200001]
[1758844437940,15.13406615,3870.2,3870.1,0.00200001]
[1758844438844,15.13406615,3870.2,3869.7,1e-08]
[1758844438845,6.37611287,3869.8,3869.7,1e-08]
[1758844439147,10.92611287,3869.8,3869.7,1e-08]
[1758844439344,11.37301287,3869.8,3869.7,1e-08]
[1758844439535,11.49521287,3869.8,3869.7,1e-08]
[1758844440948,11.46097609,3869.8,3869.7,1e-08]
[1758844441147,13.05549118,3869.8,3869.7,1e-08]
[1758844441914,15.33585066,3869.8,3869.7,1e-08]
[1758844442314,3.37651359,3869.2,3869.1,1e-08]
[1758844442518,2.58451359,3869.2,3869.1,1e-08]
[1758844442762,2.58451359,3869.2,3869.1,0.68050001]
[1758844443556,2.58451359,3869.2,3869.1,0.24780001]
[1758844444650,3.0,3869.8,3869.1,0.72270001]
[1758844444954,2.58444679,3869.3,3869.2,0.7242]
[1758844446243,2.58451359,3869.2,3869.1,1e-08]
[1758844446934,2.58451359,3869.2,3869.1,0.24930001]
[1758844447649,2.58451359,3869.2,3869.1,0.72420001]
[1758844447830,2.58451359,3869.2,3869.1,0.24930001]
[1758844448222,2.58451359,3869.2,3869.1,0.72420001]
[1758844448456,3.4715,3870.4,3869.1,0.72420001]
[1758844448755,2.58451359,3869.2,3869.1,1e-08]
[1758844449147,2.58451359,3869.2,3869.1,0.24930001]
[1758844450077,2.58451359,3869.2,3869.1,1e-08]
[1758844450583,2.58451359,3869.2,3869.1,0.24930001]
[1758844453590,2.58451359,3869.2,3869.1,1e-08]
[1758844454466,3.56918431,3869.2,3869.1,1e-08]
[1758844454984,3.56918431,3869.2,3869.1,0.00200001]
[1758844455202,0.1288,3869.3,3869.1,0.25130001]
[1758844455485,0.1288,3869.2,3869.1,0.25130001]
[1758844455992,0.1288,3869.2,3869.1,0.72620001]
[1758844457188,0.001,3869.8,3869.1,4.43120001]
[1758844457397,0.001,3869.8,3869.3,1.6808]
[1758844457566,0.001,3869.8,3869.4,4.13636567]
[1758844457769,0.001,3869.8,3869.4,4.86056567]
[1758844457958,0.001,3869.8,3869.5,0.7038]
[1758844458488,0.001,3869.8,3869.6,0.7038]
[1758844458988,0.001,3869.8,3869.7,0.7038]
[1758844459186,0.001,3869.8,3869.7,3.28797965]
[1758844459390,0.001,3869.8,3869.7,9.41282144]
[1758844459552,0.001,3869.8,3869.7,9.51577965]
[1758844461064,0.001,3869.8,3869.7,11.66777965]
[1758844461473,0.001,3869.8,3869.7,11.53897965]
[1758844463989,0.001,3869.8,3869.7,12.33097965]
[1758844464196,0.001,3869.8,3869.7,12.45834461]
[1758844466694,0.001,3869.8,3869.7,15.45834461]
[1758844467698,0.001,3869.8,3869.7,14.50997965]
[1758844467895,0.001,3869.8,3869.7,19.05397965]
[1758844469307,0.001,3869.8,3869.7,16.10997965]
[1758844469495,0.001,3869.8,3869.7,18.26197965]
[1758844469893,0.001,3869.8,3869.7,21.26197965]
[1758844470080,0.001,3869.8,3869.7,22.05397965]
[1758844471706,0.001,3869.8,3869.7,22.18277965]
[1758844474504,0.001,3869.8,3869.7,21.71167965]
[1758844475404,0.001,3869.8,3869.7,21.47897965]
[1758844476009,0.001,3869.8,3869.7,17.68697965]
[1758844476603,0.4696,3869.8,3869.7,15.1028]
[1758844476804,0.4696,3869.8,3869.7,17.68697965]
[1758844477409,0.5918,3869.8,3869.7,17.68697965]
[1758844477612,0.001,3869.8,3869.7,17.68697965]
[1758844478512,0.4696,3869.8,3869.7,17.68697965]
[1758844478691,0.4696,3869.8,3869.7,15.1028]
[1758844479087,0.5918,3869.8,3869.7,15.1028]
[1758844480096,0.4696,3869.8,3869.7,15.1028]
[1758844480803,0.5918,3869.8,3869.7,15.1028]
[1758844481007,0.5918,3869.8,3869.7,8.248]
[1758844481209,3.50637854,3869.8,3869.7,6.696]
[1758844481585,0.92226567,3869.8,3869.7,6.696]
[1758844481912,3.17591287,3869.8,3869.7,6.696]
[1758844483125,2.58440943,3869.4,3869.1,0.00200001]
[1758844483309,0.5918,3869.8,3869.2,4.539]
[1758844483310,0.1288,3869.3,3869.2,4.539]
[1758844483485,0.7196,3869.3,3869.2,4.539]
[1758844483832,0.1288,3869.7,3869.2,4.539]
[1758844483979,0.4686,3869.6,3869.2,4.539]
[1758844484182,0.4686,3869.5,3869.2,4.539]
[1758844484497,0.4686,3869.4,3869.2,4.539]
[1758844484816,0.4686,3869.3,3869.2,4.539]
[1758844487736,0.4686,3869.6,3869.2,4.539]
[1758844487938,0.4686,3869.5,3869.2,4.539]
[1758844490943,0.001,3869.3,3869.2,4.539]
[1758844491241,0.001,3869.3,3869.2,6.091]
[1758844492837,0.001,3869.3,3869.2,6.3201]
[1758844493017,0.001,3869.3,3869.2,9.48401359]
[1758844495028,0.001,3869.3,3869.2,9.03341359]
[1758844495230,0.001,3869.3,3869.2,9.48401359]
[1758844498223,0.001,3869.3,3869.2,17.67931359]
[1758844498424,0.001,3869.3,3869.2,21.96931359]
[1758844499146,0.001,3869.3,3869.2,22.19841359]
[1758844499950,0.001,3869.3,3869.2,23.44101359]
[1758844500352,0.001,3869.3,3869.2,10.95131359]
[1758844501046,0.001,3869.3,3869.2,8.3668]
[1758844501448,0.4751,3869.3,3869.2,8.3668]
[1758844502862,0.001,3869.3,3869.2,11.55674408]
[1758844503037,0.001,3869.3,3869.2,10.95131359]
[1758844503242,0.001,3869.3,3869.2,8.3668]
[1758844503438,0.4751,3869.3,3869.2,8.3668]
[1758844503742,0.5973,3869.3,3869.2,8.3668]
[1758844503936,3.49990208,3869.3,3869.2,6.686]
[1758844504126,3.62870208,3869.3,3869.2,4.534]
[1758844505257,5.58451359,3869.2,3869.1,0.00200001]
[1758844505847,6.16291359,3869.2,3869.1,0.00200001]
[1758844506052,8.13288065,3869.2,3869.1,0.00200001]
[1758844510069,12.66488065,3869.2,3869.1,0.00200001]
[1758844510397,7.21868065,3869.2,3869.1,0.00200001]
[1758844510876,7.34088065,3869.2,3869.1,0.00200001]
[1758844512562,7.34088065,3869.2,3869.0,1e-08]
[1758844512563,6.37658039,3869.1,3869.0,1e-08]
[1758844512761,8.4918827,3869.1,3869.0,1e-08]
[1758844512982,9.0702827,3869.1,3869.0,1e-08]
[1758844515288,9.17390414,3869.1,3869.0,1e-08]
[1758844517412,8.59550414,3869.1,3869.0,1e-08]
[1758844517582,6.37658039,3869.1,3869.0,1e-08]
[1758844517787,10.11458039,3869.1,3869.0,1e-08]
[1758844518096,10.57018039,3869.1,3869.0,1e-08]
[1758844519677,11.48438039,3869.1,3869.0,1e-08]
[1758844521823,5.58458039,3869.1,3869.0,1e-08]
[1758844522020,11.07213649,3869.1,3869.0,1e-08]
[1758844522629,0.4566,3869.3,3869.0,1e-08]
[1758844522630,0.001,3869.3,3869.0,1e-08]
[1758844522925,0.001,3869.3,3869.0,2.227]
[1758844523226,0.001,3869.3,3868.7,0.15664847]
[1758844523227,0.001,3869.3,3869.1,0.2375]
[1758844523528,0.1288,3868.8,3868.7,0.002]
[1758844523697,0.1288,3868.8,3868.7,0.677]
[1758844523888,2.71358081,3868.8,3868.7,0.677]
[1758844524094,2.71358081,3868.8,3868.7,0.2395]
[1758844525695,0.1288,3868.8,3868.7,0.2395]
[1758844526441,2.71358081,3868.8,3868.7,0.2395]
[1758844526824,0.1288,3868.8,3868.7,0.2395]
[1758844527196,0.001,3869.3,3868.7,0.2395]
[1758844527197,4.529,3869.3,3868.7,0.2395]
[1758844527401,2.58457268,3869.2,3868.8,0.4375]
[1758844527735,2.58457268,3869.2,3868.9,0.675]
[1758844527942,2.58478081,3868.8,3868.7,0.002]
[1758844529767,2.58470317,3869.0,3868.7,0.677]
[1758844530058,3.55421336,3869.2,3868.8,0.2375]
[1758844530220,0.96969032,3869.2,3868.8,0.2375]
[1758844530579,2.58478081,3868.8,3868.7,0.002]
[1758844531850,3.04038081,3868.8,3868.7,0.002]
[1758844532636,2.58478081,3868.8,3868.7,0.002]
[1758844532940,7.11078081,3868.8,3868.7,0.002]
[1758844533266,7.56638081,3868.8,3868.7,0.002]
[1758844533757,9.03173389,3868.8,3868.7,0.002]
[1758844535584,12.94593389,3868.8,3868.7,0.002]
[1758844536950,12.82373389,3868.8,3868.7,0.002]
[1758844538246,12.94593389,3868.8,3868.7,0.002]
[1758844538647,8.29773389,3868.8,3868.7,0.002]
[1758844538847,14.97473389,3868.8,3868.7,0.002]
[1758844539266,15.09693389,3868.8,3868.7,0.002]
[1758844539771,15.53443389,3868.8,3868.7,0.002]
[1758844540348,15.53443389,3868.8,3868.1,0.02]
[1758844540349,3.37718173,3868.2,3868.1,1e-08]
[1758844540671,15.87767241,3868.2,3868.1,1e-08]
[1758844540875,16.45547241,3868.2,3868.1,1e-08]
[1758844541075,16.69297241,3868.2,3868.1,1e-08]
[1758844541651,2.58585022,3867.2,3867.1,0.02]
[1758844541857,11.49011376,3867.2,3867.1,0.02]
[1758844542057,13.47550092,3867.2,3867.1,0.02]
[1758844542257,16.47550092,3867.2,3867.1,0.02]
[1758844542481,17.14530092,3867.2,3867.1,0.02]
[1758844542658,17.26750092,3867.2,3867.1,0.02]
[1758844542858,17.50500092,3867.2,3867.1,0.02]
[1758844543060,12.11308716,3867.2,3867.1,0.02]
[1758844543259,3.0,3867.2,3867.1,0.2575]
[1758844543458,7.523,3867.2,3867.1,0.695]
[1758844543659,3.0,3867.5,3867.1,0.695]
[1758844543858,4.38026354,3867.2,3866.1,1e-08]
[1758844544080,9.65886354,3867.4,3866.1,1e-08]
[1758844544081,10.7587826,3866.2,3866.1,1e-08]
[1758844544377,16.61630032,3866.2,3866.1,1e-08]
[1758844544580,5.11185371,3866.2,3866.1,1e-08]
[1758844544879,10.88685505,3866.2,3866.1,1e-08]
[1758844545276,10.88685505,3866.2,3865.1,1e-08]
[1758844545277,2.58718824,3865.2,3865.1,1e-08]
[1758844545477,10.90218824,3865.2,3865.1,1e-08]
[1758844545979,11.81528824,3865.2,3865.1,1e-08]
[1758844546677,5.58718824,3865.2,3865.1,0.23750001]
[1758844546882,6.85691419,3865.2,3865.1,1e-08]
[1758844547087,11.37991419,3865.2,3865.1,1e-08]
[1758844547576,7.64891419,3865.2,3865.1,1e-08]
[1758844547878,12.62751419,3865.2,3865.1,1e-08]
[1758844548211,12.62751419,3865.2,3862.1,0.02]
[1758844548212,0.792,3865.0,3862.1,0.02]
[1758844548485,0.792,3864.5,3862.4,0.4654]
[1758844548782,3.0,3863.9,3862.5,0.2262]
[1758844548991,2.58825965,3863.6,3862.6,0.4654]
[1758844549287,0.792,3863.7,3862.7,0.2262]
[1758844549473,0.7321,3863.8,3862.7,0.2262]
[1758844549474,2.58845153,3863.4,3862.7,0.2262]
[1758844549657,4.529,3863.7,3862.8,0.4654]
[1758844549860,2.58866166,3863.0,3862.9,0.2262]
[1758844550183,0.1288,3863.1,3863.0,0.4654]
[1758844550384,2.71739465,3863.1,3863.0,0.6916]
[1758844550689,2.71739465,3863.1,3863.0,0.2262]
[1758844550895,0.1288,3863.1,3863.0,0.2262]
[1758844551098,0.1288,3863.1,3862.1,0.02]
[1758844551099,0.27173221,3863.1,3862.1,0.02]
[1758844551249,3.0,3863.3,3862.2,0.6916]
[1758844551455,2.58873786,3862.9,3862.3,0.6916]
[1758844551667,2.58880627,3862.8,3862.4,0.6916]
[1758844551878,2.58887882,3862.7,3862.5,0.6916]
[1758844552079,2.58887882,3862.7,3862.6,0.6916]
[1758844552282,2.58866086,3863.1,3862.6,0.6916]
[1758844552580,2.58866086,3863.1,3862.1,0.02]
[1758844552581,0.792,3864.2,3862.7,0.6916]
[1758844552751,3.0,3863.8,3862.8,0.2262]
[1758844552952,2.58872867,3862.9,3862.8,0.2262]
[1758844553357,3.4321,3863.8,3862.8,0.2262]
[1758844553358,2.5871,3864.3,3862.8,0.6916]
[1758844553569,2.58829347,3863.6,3862.9,0.71748728]
[1758844553769,2.58818032,3863.8,3863.0,7.3796]
[1758844553984,2.58822624,3863.7,3863.1,0.71748594]
[1758844554195,3.01968672,3864.7,3863.2,0.6916]
[1758844554393,2.175,3864.9,3863.0,6.688]
[1758844554394,6.707,3864.9,3863.3,0.7174846]
[1758844554596,3.02,3864.9,3863.4,0.6916]
[1758844554808,2.58772248,3864.5,3863.5,0.6916]
[1758844554964,2.58772248,3864.5,3863.6,1.01959914]
[1758844555164,0.02,3864.9,3863.7,2.87248192]
[1758844555604,2.58759221,3864.6,3863.8,0.6916]
[1758844555793,0.02,3864.9,3863.9,5.2236]
[1758844555980,0.02,3864.9,3864.0,3.02587991]
[1758844556165,0.02,3864.9,3864.5,2.58759415]
[1758844556495,0.02,3864.9,3864.6,2.18087589]
[1758844556796,0.02,3864.9,3864.3,0.6916]
[1758844556971,0.02,3864.9,3864.5,4.533]
[1758844557373,0.02,3864.9,3864.6,0.71747589]
[1758844557572,0.02,3864.9,3864.6,0.6916]
[1758844557773,0.02,3864.9,3864.7,0.6916]
[1758844557975,0.02,3864.9,3864.8,2.58745601]
[1758844558196,0.02,3864.9,3864.8,3.30493057]
[1758844558398,0.02,3864.9,3864.8,4.7692]
[1758844558601,0.02,3864.9,3864.8,7.3896]
[1758844558789,0.02,3864.9,3864.8,9.97705601]
[1758844559300,0.02,3864.9,3864.8,13.76905601]
[1758844560204,0.02,3864.9,3864.8,7.07105601]
[1758844560392,0.02,3865.9,3865.8,2.58678669]
[1758844560583,0.02,3866.9,3866.8,2.58611772]
[1758844560765,0.02,3866.9,3866.8,16.03011772]
[1758844560967,0.02,3866.9,3866.8,19.72171772]
[1758844561268,0.02,3867.9,3866.8,3.27767735]
[1758844561489,0.02,3867.9,3867.0,3.792]
[1758844561706,0.02,3867.9,3867.8,5.58544909]
[1758844561928,0.02,3868.9,3867.9,3.0]
[1758844562083,0.02,3868.9,3868.0,6.714]
[1758844562280,0.02,3868.9,3867.6,0.2262]
[1758844562480,0.4321,3868.8,3867.7,3.545]
[1758844562708,0.4321,3868.8,3867.8,2.155]
[1758844562903,2.58492814,3868.6,3867.8,2.155]
[1758844563116,2.58498842,3868.5,3867.8,2.155]
[1758844563290,2.58492062,3868.6,3867.8,2.155]
[1758844563495,2.5849829,3868.5,3867.8,2.155]
[1758844563702,2.58498774,3868.5,3867.8,2.155]
[1758844564103,0.74810358,3868.8,3867.8,2.155]
[1758844564421,0.5698,3868.7,3867.2,0.239]
[1758844564596,0.9142,3868.6,3866.8,0.239]
[1758844564916,2.58545146,3867.8,3866.9,5.057]
[1758844565117,2.58553695,3867.7,3866.9,5.057]
[1758844565415,0.4476,3867.6,3866.8,2.154]
[1758844565590,2.58598396,3867.0,3866.9,4.553]
[1758844565987,2.58559982,3867.6,3866.9,5.2544605]
[1758844566187,2.58559982,3867.6,3866.9,5.2286]
[1758844566382,2.58584119,3867.3,3866.9,5.2286]
[1758844566619,2.58612077,3866.8,3866.3,0.239]
[1758844566913,0.1222,3867.7,3866.4,6.95]
[1758844567120,0.4476,3867.6,3866.4,6.95]
[1758844567318,2.58625738,3866.6,3866.4,4.557]
[1758844567542,2.58625148,3866.6,3866.5,6.711]
[1758844568685,2.58651906,3866.2,3866.1,0.02]
[1758844569297,0.1222,3867.2,3866.1,0.259]
[1758844569508,2.58597995,3867.1,3866.1,0.72146585]
[1758844569710,2.5858546,3867.2,3866.2,0.6756]
[1758844569900,2.5858546,3867.2,3866.3,2.82544124]
[1758844570210,2.58531152,3868.1,3866.1,0.02]
[1758844570211,0.4476,3868.3,3866.4,1.00380412]
[1758844570404,2.58585582,3867.2,3866.5,2.393]
[1758844570605,2.58558279,3867.6,3866.6,4.558]
[1758844570800,2.58604817,3867.0,3866.6,4.558]
[1758844571001,2.58558279,3867.6,3866.2,0.239]
[1758844571002,0.4476,3867.3,3866.2,0.239]
[1758844571232,2.71478952,3867.0,3866.7,4.558]
[1758844571402,2.71497691,3866.8,3866.7,4.558]
[1758844572106,0.1288,3866.8,3866.7,4.558]
[1758844572308,0.1288,3867.2,3866.7,5.2336]
[1758844572509,0.1288,3867.2,3866.8,0.70146117]
[1758844572810,2.58578875,3867.3,3867.0,0.1288]
[1758844573009,0.4476,3867.6,3866.5,0.239]
[1758844573308,2.5861626,3866.8,3866.6,5.1498]
[1758844574143,7.506,3868.4,3866.6,5.021]
[1758844574144,2.5861846,3866.7,3866.6,5.021]
[1758844574341,2.7149846,3866.7,3866.6,5.021]
[1758844575002,0.1288,3866.7,3866.6,5.021]
[1758844575358,2.58590673,3867.2,3866.6,5.6966]
[1758844575643,0.1288,3867.3,3866.7,0.239]
[1758844575944,2.5858708,3867.2,3866.7,0.239]
[1758844576112,2.71461433,3867.3,3866.8,0.239]
[1758844576319,2.58585951,3867.2,3866.9,0.239]
[1758844576518,2.71460567,3867.3,3866.9,0.239]
[1758844576844,2.58598396,3867.0,3866.6,5.1498]
[1758844577057,2.58591524,3867.2,3866.6,5.1498]
[1758844577267,0.1288,3867.3,3866.7,0.239]
[1758844577825,2.58593612,3867.1,3866.7,0.239]
[1758844578143,2.58598524,3867.0,3866.8,0.2394]
[1758844578556,2.58592568,3867.1,3866.8,0.2394]
[1758844579052,2.58592341,3867.1,3866.8,0.2394]
[1758844579242,0.1288,3867.3,3866.9,0.2394]
[1758844579442,2.58486296,3870.2,3867.0,0.71855983]
[1758844579443,0.4707,3868.6,3867.0,0.71855983]
[1758844579626,0.1288,3868.0,3867.4,0.1288]
[1758844579825,0.1288,3868.0,3867.5,2.8467]
[1758844580040,0.1288,3868.0,3867.6,4.7924]
[1758844580465,0.1288,3868.0,3867.4,0.1288]
[1758844580761,2.71415349,3868.0,3867.5,6.706]
[1758844580959,2.58538224,3867.9,3867.5,6.706]
[1758844581321,0.1288,3868.0,3867.5,6.706]
[1758844581555,0.1288,3867.8,3867.5,6.706]
[1758844581730,0.1288,3867.8,3867.5,6.9454]
[1758844582062,0.1288,3867.8,3867.5,6.706]
[1758844582228,0.1288,3867.8,3867.6,0.2394]
[1758844582428,0.1288,3867.8,3867.5,6.706]
[1758844582662,2.58552167,3867.7,3867.5,6.706]
[1758844582881,0.001,3868.0,3867.6,0.71855582]
[1758844583160,0.001,3868.0,3867.6,0.84735582]
[1758844583469,0.001,3868.0,3867.7,0.6927]
[1758844583634,0.001,3868.0,3867.8,2.58544016]
[1758844583834,0.001,3868.0,3867.9,4.546]
[1758844584058,0.001,3868.0,3867.9,0.6927]
[1758844584356,0.001,3868.0,3867.6,0.2394]
[1758844584570,2.5853996,3867.9,3867.5,0.2394]
[1758844584774,2.58538224,3867.9,3867.7,4.546]
[1758844584976,2.58538224,3867.9,3867.8,4.546]
[1758844585540,0.25863822,3867.9,3866.1,0.4733]
[1758844585875,0.1222,3867.8,3866.8,6.731]
[1758844586060,0.001,3868.0,3866.9,0.2652605]
[1758844586265,0.001,3868.0,3866.9,0.6927]
[1758844586462,2.58573002,3867.4,3866.9,0.6927]
[1758844586775,2.5854454,3867.9,3867.0,0.6927]
[1758844586964,0.001,3868.0,3867.1,7.84946875]
[1758844587279,0.001,3868.0,3867.1,7.82360958]
[1758844587481,0.001,3868.0,3867.2,0.2652585]
[1758844587777,0.001,3868.0,3867.4,1.552]
[1758844587985,0.001,3868.0,3867.6,2.58552644]
[1758844588581,0.001,3868.0,3867.7,0.6927]
[1758844589074,0.001,3868.0,3867.7,3.27819834]
[1758844589275,0.001,3868.0,3867.8,0.6927]
[1758844589445,0.001,3868.0,3867.9,4.544]
[1758844589645,0.001,3868.0,3867.9,4.7834]
[1758844591251,0.001,3868.0,3867.9,5.2367]
[1758844591698,0.001,3868.0,3867.9,4.7834]
[1758844593452,0.001,3868.0,3867.9,4.9122]
[1758844594093,0.001,3868.0,3867.9,6.686]
[1758844594262,2.5863154,3868.0,3867.9,6.686]
[1758844594450,0.001,3868.0,3867.9,6.686]
[1758844595055,0.001,3868.0,3867.9,6.9254]
[1758844595757,0.001,3868.0,3867.9,7.0542]
[1758844596181,0.001,3868.0,3867.9,7.5075]
[1758844596377,0.001,3868.0,3867.9,10.09288224]
[1758844598759,0.001,3868.0,3867.9,11.64488224]
[1758844599288,0.001,3868.0,3867.9,12.43688224]
[1758844599509,0.001,3868.0,3867.9,15.43688224]
[1758844600709,0.001,3868.0,3867.9,8.75088224]
[1758844600916,0.001,3868.0,3867.9,22.15788224]
[1758844601081,0.001,3868.0,3867.9,6.1655]
[1758844601302,0.001,3868.0,3867.9,22.15788224]
[1758844602614,0.001,3868.0,3867.9,22.02908224]
[1758844603205,0.001,3868.0,3867.9,8.62208224]
[1758844603590,0.001,3868.0,3867.9,22.02908224]
[1758844611724,0.02,3868.9,3868.7,2.344]
[1758844611725,1e-08,3868.9,3868.7,2.344]
[1758844611959,1e-08,3868.9,3868.8,12.0458478]
[1758844612108,1e-08,3868.9,3868.8,12.7035]
[1758844612759,1e-08,3868.9,3868.8,15.41708081]
[1758844613337,1e-08,3868.9,3868.8,8.05758081]
[1758844613545,1e-08,3868.9,3868.8,21.46058081]
[1758844614630,1e-08,3868.9,3868.8,21.70258081]
[1758844615910,1e-08,3868.9,3868.8,22.14408081]
[1758844616147,1e-08,3868.9,3868.8,21.70258081]
[1758844618269,1e-08,3868.9,3868.8,22.14408081]
[1758844618430,1e-08,3868.9,3868.8,21.70258081]
[1758844619016,0.001,3869.0,3868.8,21.70258081]
[1758844619248,0.41660001,3869.5,3869.4,7.13638]
[1758844619413,0.41660001,3869.5,3869.4,11.65938]
[1758844619612,0.53880001,3869.5,3869.4,11.65938]
[1758844620116,0.53880001,3869.5,3869.4,8.65938]
[1758844620439,0.53880001,3869.5,3869.4,6.675]
[1758844620644,0.53880001,3869.5,3869.4,9.25938]
[1758844622623,0.41660001,3869.5,3869.4,9.25938]
[1758844623018,0.4646,3869.7,3869.6,2.58424643]
[1758844623242,0.001,3869.7,3869.6,7.10624643]
[1758844623932,0.001,3869.7,3869.6,10.10624643]
[1758844624539,0.001,3869.7,3869.6,11.65824643]
[1758844624744,0.001,3869.7,3869.6,12.68004643]
[1758844626055,0.001,3869.7,3869.6,8.15804643]
[1758844626244,0.001,3869.7,3869.6,21.55804643]
[1758844627356,0.001,3870.2,3870.0,2.58397932]
[1758844627544,0.001,3870.2,3870.0,12.47581911]
[1758844627737,0.001,3870.2,3870.0,12.67977932]
[1758844628259,0.001,3870.2,3870.0,8.15777932]
[1758844628460,0.001,3870.2,3870.0,21.55777932]
[1758844628667,0.001,3870.2,3870.0,21.98727932]
[1758844629245,0.001,3870.2,3870.0,22.11607932]
[1758844629675,0.001,3870.2,3870.0,21.68657932]
[1758844630059,0.001,3870.2,3870.0,22.11607932]
[1758844631366,0.001,3870.6,3870.5,7.92764552]
[1758844631568,0.001,3870.6,3870.5,12.57744552]
[1758844631816,0.02,3870.9,3870.5,12.57744552]
[1758844631817,1e-08,3870.9,3870.8,4.92744528]
[1758844631958,1e-08,3870.9,3870.8,14.60044528]
[1758844632290,1e-08,3870.9,3870.8,15.38854528]
[1758844632590,1e-08,3870.9,3870.8,14.95904528]
[1758844633154,1e-08,3870.9,3870.8,14.72924528]
[1758844633389,0.43360001,3870.9,3870.8,21.45324528]
[1758844633576,0.43360001,3870.9,3870.8,13.5578]
[1758844633781,0.55580001,3870.9,3870.8,15.9248]
[1758844633989,0.55580001,3870.9,3870.8,16.5238]
[1758844634195,1e-08,3870.9,3870.8,3.50424528]
[1758844634359,1e-08,3870.9,3870.8,18.32244528]
[1758844634558,1e-08,3870.9,3870.8,21.55224528]
[1758844635604,1e-08,3870.9,3870.8,16.01044528]
[1758844635605,0.43360001,3870.9,3870.8,16.01044528]
[1758844635895,0.43360001,3870.9,3870.8,20.53044528]
[1758844636764,1e-08,3870.9,3870.8,20.53044528]
[1758844637068,1e-08,3870.9,3870.8,21.55224528]
[1758844638196,1e-08,3870.9,3870.8,21.32244528]
[1758844638355,1e-08,3870.9,3870.8,21.55354528]
[1758844638962,0.00100001,3870.9,3870.8,21.32244528]
[1758844639367,0.00100001,3870.9,3870.8,21.55354528]
[1758844641269,0.1232,3873.1,3871.9,1.552]
[1758844641474,0.4703,3872.8,3872.0,14.59564462]
[1758844643202,0.4703,3872.8,3872.0,14.9525928]
[1758844644021,0.1422,3872.9,3872.0,7.92664462]
[1758844644307,0.4713,3872.5,3872.0,21.44744462]
[1758844644712,0.001,3872.5,3872.0,21.44744462]
[1758844645006,0.4713,3872.5,3872.0,21.44744462]
[1758844646268,0.4713,3872.1,3872.0,5.58264462]
[1758844646507,0.5935,3872.1,3872.0,12.25064462]
[1758844646899,0.5935,3872.1,3872.0,9.668]
[1758844647074,0.5935,3872.1,3872.0,12.25064462]
[1758844647474,0.5935,3872.1,3872.0,9.668]
[1758844647976,0.5935,3872.1,3871.3,0.52686561]
[1758844648183,0.5935,3872.1,3871.5,2.58295885]
[1758844648184,0.1222,3872.0,3871.5,2.58295885]
[1758844648413,0.5925,3872.0,3871.6,3.504]
[1758844648728,0.5925,3871.9,3871.6,3.504]
[1758844648937,0.5925,3871.8,3871.6,3.504]
[1758844649141,0.5925,3871.7,3871.6,0.504]
[1758844650114,0.5925,3871.7,3871.6,3.08691145]
[1758844650328,0.5925,3871.7,3871.6,0.504]
[1758844650735,0.5925,3871.7,3871.6,6.08691145]
[1758844653344,0.4703,3871.7,3871.6,6.08691145]
[1758844653508,0.4703,3871.7,3871.6,0.504]